[Event "Bamberg-Open 2019"]
[Site "Bamberg"]
[Date "2019.06.02"]
[Round "7.18"]
[White "Hoekstra, Peter"]
[Black "Hiemer, Bernd"]
[Result "1-0"]
[ECO "B07"]
[WhiteElo "1979"]
[BlackElo "2036"]
[Annotator "NA"]
[PlyCount "75"]
[EventDate "2019.05.12"]
[EventType "swiss"]
[EventCountry "GER"]
[SourceTitle "playchess.com"]
[Source "ChessBase"]
[SourceQuality "1"]
[TimeControl "40/5400+30:900+30"]

1. e4 {[%emt 0:05:35]} d6 {[%emt 0:01:20]} 2. d4 {[%emt 0:00:12]} Nf6 {[%emt 0:00:04]} 3. Nc3 {[%emt 0:00:06]} g6 {[%emt 0:00:03]} 4. h3 {[%emt 0:01:12]} Bg7 {[%emt 0:00:11]} 5. Be3 {[%emt 0:00:06]} c6 {[%emt 0:00:19]} 6. a4 {[%emt 0:00:36]} O-O {[%emt 0:00:28]} 7. Nf3 {[%emt 0:00:04]} Qa5 {[%emt 0:02:49]} 8. Nd2 {[%emt 0:01:36]} Nbd7 {[%emt 0:05:35]} 9. Be2 {[%emt 0:11:33] B08: Pirc Defence: Classical System} Qc7 {[%emt 0:05:58]} 10. Nc4 {[%emt 0:00:39]} b6 $146 {[%emt 0:08:40]} ({Predecessor:} 10... d5 11. exd5 Nxd5 12. Nxd5 cxd5 13. Na3 a6 14. O-O Nf6 15. Bf3 Be6 16. Re1 Rac8 {1-0 (49) Hoffmann,P (2355)-Konstacky,M (2117) Litomysl 2009}) 11. f4 {[%emt 0:10:38]} Nxe4 {[%emt 0:16:29]} 12. Nxe4 {[%emt 0:01:38]} d5 {[%emt 0:00:17]} 13. Ng5 {[%emt 0:04:24]} dxc4 {[%emt 0:01:10]} 14. Bxc4 {[%emt 0:00:06]} Nf6 {[%emt 0:00:21]} 15. O-O {[%emt 0:03:35]} Nd5 {[%emt 0:00:37]} 16. Bc1 {[%emt 0:03:22]} h6 {[%emt 0:06:48]} 17. Nf3 {[%emt 0:07:41]} Nxf4 {[%emt 0:15:27]} 18. Bxf4 {[%emt 0:00:53]} Qxf4 {[%emt 0:00:03]} 19. Ne5 {[%emt 0:00:31]} Qe3+ {[%emt 0:00:07]} 20. Kh1 {[%emt 0:03:27]} Bxe5 {[%emt 0:01:13]} 21. dxe5 {[%emt 0:00:04]} Bxh3 {[%emt 0:05:38]} 22. Rf3 {[%emt 0:01:36]} Bxg2+ {[%emt 0:03:12]} 23. Kxg2 {[%emt 0:02:43]} Qxe5 {[%emt 0:00:05]} 24. Qd3 {[%emt 0:02:50]} (24. Qd2 $1 $14) 24... Kg7 {[%emt 0:03:12]} 25. Raf1 {[%emt 0:00:37]} Qg5+ {[%emt 0:04:28]} 26. Rg3 {[%emt 0:00:34]} Qh5 {[%emt 0:05:59]} 27. Rf5 {[%emt 0:00:56]} g5 {[%emt 0:00:13]} 28. Qd4+ $18 {[%emt 0:04:16]} (28. Qe3 $142) 28... f6 {[%emt 0:02:26]} 29. Qe4 {[%emt 0:00:11]} Qe8 {[%emt 0:00:51]} 30. Bd3 {[%emt 0:00:12]} Rh8 {[%emt 0:00:54]} 31. Re3 {[%emt 0:02:32]} Kf8 {[%emt 0:04:59]} 32. Ref3 {[%emt 0:04:46]} Kg7 {[%emt 0:00:03]} 33. Re5 {[%emt 0:03:31]} Kf8 {[%emt 0:01:13]} 34. Rxf6+ {[%emt 0:06:55]} exf6 {[%emt 0:00:11]} 35. Rxe8+ {[%emt 0:00:04]} Rxe8 {[%emt 0:00:05]} 36. Qxc6 {[%emt 0:01:12]} Kf7 {[%emt 0:02:52]} 37. Qd7+ {[%emt 0:00:27]} Kf8 {[%emt 0:00:54]} 38. Bc4 {[%emt 0:01:09]} 1-0

[Event "Bamberg-Open 2019"]
[Site "Bamberg"]
[Date "2019.06.02"]
[Round "7.19"]
[White "Chennaoui, Yasin"]
[Black "Pribyl, Viktor"]
[Result "1-0"]
[ECO "B25"]
[WhiteElo "2184"]
[BlackElo "1933"]
[Annotator "ChessBase"]
[PlyCount "93"]
[EventDate "2019.05.12"]
[EventType "swiss"]
[EventCountry "GER"]
[SourceTitle "playchess.com"]
[Source "ChessBase"]
[SourceQuality "1"]
[TimeControl "40/5400+30:900+30"]

1. e4 {[%emt 0:00:00]} c5 {[%emt 0:00:10]} 2. Nc3 {[%emt 0:00:08]} d6 {[%emt 0:00:34]} 3. g3 {[%emt 0:02:23]} Nc6 {[%emt 0:01:35]} 4. Bg2 {[%emt 0:00:06]} g6 {[%emt 0:00:27]} 5. d3 {[%emt 0:02:29]} Bg7 {[%emt 0:00:27]} 6. f4 {[%emt 0:00:54]} e6 {[%emt 0:00:41]} 7. Nf3 {[%emt 0:00:26]} Nge7 {[%emt 0:02:08]} 8. O-O {[%emt 0:00:27]} O-O {[%emt 0:01:14]} 9. Be3 {[%emt 0:04:06]} Nd4 {[%emt 0:09:33]} 10. Qd2 {[%emt 0:01:28]} f5 {[%emt 0:10:14]} 11. Rae1 {[%emt 0:01:29]} Nec6 {[%emt 0:07:18]} 12. Nd1 {[%emt 0:19:51]} e5 {[%emt 0:23:50]} 13. c3 {[%emt 0:00:47]} Ne6 {[%emt 0:01:25]} 14. exf5 {[%emt 0:04:20]} gxf5 {[%emt 0:01:58]} 15. fxe5 {[%emt 0:00:15]} dxe5 {[%emt 0:00:27]} 16. Bh6 {[%emt 0:00:25]} Qf6 {[%emt 0:06:01]} 17. Bxg7 {[%emt 0:00:11]} Qxg7 {[%emt 0:00:02]} 18. Qe2 {[%emt 0:00:43]} c4 {[%emt 0:02:14]} 19. Nxe5 {[%emt 0:01:10]} Nxe5 {[%emt 0:03:07]} 20. Qxe5 {[%emt 0:00:03]} Qxe5 {[%emt 0:00:17]} 21. Rxe5 {[%emt 0:00:03]} cxd3 {[%emt 0:00:17]} 22. Bd5 {[%emt 0:00:26]} Rf6 {[%emt 0:00:52]} 23. Ne3 {[%emt 0:01:03]} Bd7 {[%emt 0:01:58]} 24. Rexf5 {[%emt 0:03:44]} Rxf5 {[%emt 0:00:24]} 25. Nxf5 {[%emt 0:00:48]} Rf8 {[%emt 0:03:19]} 26. Nd4 {[%emt 0:00:19]} Re8 {[%emt 0:00:45]} 27. Rd1 {[%emt 0:01:17]} Kh8 {[%emt 0:00:27]} 28. Nxe6 {[%emt 0:00:08]} Bxe6 {[%emt 0:00:01]} 29. Bxe6 {[%emt 0:00:09]} Rxe6 {[%emt 0:00:12]} 30. Rxd3 {[%emt 0:00:02]} Rb6 {[%emt 0:00:53]} 31. b3 {[%emt 0:00:11]} Kg7 {[%emt 0:00:05]} 32. Rd7+ {[%emt 0:01:04]} Kg6 {[%emt 0:00:07]} 33. Rc7 {[%emt 0:00:52]} h6 {[%emt 0:00:28]} 34. Kf2 {[%emt 0:00:06]} Kf5 {[%emt 0:00:16]} 35. Kf3 {[%emt 0:00:11]} Ke5 {[%emt 0:00:48]} 36. Kg4 {[%emt 0:00:07]} Ke4 {[%emt 0:00:11]} 37. Kh5 {[%emt 0:01:35]} Kf3 {[%emt 0:01:28]} 38. Rg7 {[%emt 0:00:31]} Ra6 {[%emt 0:01:02]} 39. a4 {[%emt 0:01:01]} Rb6 {[%emt 0:00:20]} 40. b4 {[%emt 0:00:07]} Rc6 {[%emt 0:02:28]} 41. Rxb7 {[%emt 0:15:19]} Kg2 {[%emt 0:15:18]} 42. b5 {[%emt 0:00:34]} Rxc3 {[%emt 0:00:11]} 43. Rxa7 {[%emt 0:00:16]} Kxh2 {[%emt 0:00:02]} 44. Rg7 {[%emt 0:00:49]} Kh3 {[%emt 0:00:55]} 45. b6 {[%emt 0:00:26]} Rc5+ {[%emt 0:00:10]} 46. Kxh6 {[%emt 0:00:05]} Rc6+ {[%emt 0:00:12]} 47. Rg6 {[%emt 0:00:07]} 1-0

[Event "Bamberg-Open 2019"]
[Site "Bamberg"]
[Date "2019.06.02"]
[Round "7.20"]
[White "Stauch, Edgar"]
[Black "Minor, Viatcheslav"]
[Result "1/2-1/2"]
[ECO "A34"]
[WhiteElo "2207"]
[BlackElo "2032"]
[Annotator "ChessBase"]
[PlyCount "80"]
[EventDate "2019.05.12"]
[EventType "swiss"]
[EventCountry "GER"]
[SourceTitle "playchess.com"]
[Source "ChessBase"]
[SourceQuality "1"]
[TimeControl "40/5400+30:900+30"]

1. c4 {[%emt 0:00:00]} Nf6 {[%emt 0:00:00]} 2. g3 {[%emt 0:00:00]} c5 {[%emt 0:00:20]} 3. Bg2 {[%emt 0:01:25]} d5 {[%emt 0:00:12]} 4. cxd5 {[%emt 0:00:09]} Nxd5 {[%emt 0:00:03]} 5. Nc3 {[%emt 0:00:08]} Nc7 {[%emt 0:00:08]} 6. Nf3 {[%emt 0:08:33]} Nc6 {[%emt 0:00:45]} 7. O-O {[%emt 0:16:45]} e5 {[%emt 0:01:20]} 8. d3 {[%emt 0:00:55]} Be7 {[%emt 0:00:10]} 9. Ne1 {[%emt 0:01:42]} Bd7 {[%emt 0:12:31]} 10. f4 {[%emt 0:01:51]} exf4 {[%emt 0:02:30]} 11. gxf4 {[%emt 0:16:34]} O-O {[%emt 0:02:32]} 12. e4 {[%emt 0:04:21]} Ne6 {[%emt 0:03:10]} 13. Qh5 {[%emt 0:02:09]} Ned4 {[%emt 0:02:06]} 14. Be3 {[%emt 0:03:22]} Rc8 {[%emt 0:01:15]} 15. Rc1 {[%emt 0:01:51]} f6 {[%emt 0:00:38]} 16. Kh1 {[%emt 0:01:10]} Be8 {[%emt 0:02:43]} 17. Qd1 {[%emt 0:01:26]} Bd6 {[%emt 0:00:25]} 18. Bh3 {[%emt 0:01:17]} Bd7 {[%emt 0:01:05]} 19. Qh5 {[%emt 0:02:10]} Bxh3 {[%emt 0:04:09]} 20. Qxh3 {[%emt 0:00:01]} Qe7 {[%emt 0:03:45]} 21. Nd5 {[%emt 0:01:01]} Qe6 {[%emt 0:03:49]} 22. f5 {[%emt 0:01:57]} Qf7 {[%emt 0:00:58]} 23. Ng2 {[%emt 0:07:52]} Rfe8 {[%emt 0:05:29]} 24. Rf2 {[%emt 0:01:57]} Nb4 {[%emt 0:10:10]} 25. Ngf4 {[%emt 0:05:55]} Be5 {[%emt 0:14:44]} 26. Rg2 {[%emt 0:03:40]} Nxd5 {[%emt 0:02:45]} 27. Nxd5 {[%emt 0:00:39]} Kh8 {[%emt 0:07:24]} 28. Rcg1 {[%emt 0:00:58]} Rg8 {[%emt 0:00:32]} 29. Rg4 {[%emt 0:01:20]} Nxf5 {[%emt 0:00:14]} 30. exf5 {[%emt 0:02:57]} Qxd5+ {[%emt 0:00:19]} 31. R1g2 {[%emt 0:00:09]} g6 {[%emt 0:04:07]} 32. fxg6 {[%emt 0:01:47]} Rc7 {[%emt 0:01:49]} 33. Bh6 {[%emt 0:03:47]} f5 {[%emt 0:02:22]} 34. Rg5 {[%emt 0:02:50]} Rxg6 {[%emt 0:02:25]} 35. Rxg6 {[%emt 0:00:20]} hxg6 {[%emt 0:00:01]} 36. Bf4+ {[%emt 0:02:18]} Rh7 {[%emt 0:00:23]} 37. Bxe5+ {[%emt 0:00:03]} Qxe5 {[%emt 0:00:19]} 38. Qf3 {[%emt 0:01:05]} Qe1+ 39. Rg1 Qe6 40. Rg2 Rg7 1/2-1/2

[Event "Bamberg-Open 2019"]
[Site "Bamberg"]
[Date "2019.06.02"]
[Round "7.21"]
[White "Schmidt, Justus"]
[Black "Waffenschmidt, Joachim"]
[Result "1-0"]
[ECO "B50"]
[WhiteElo "2153"]
[BlackElo "1983"]
[Annotator "ChessBase"]
[PlyCount "47"]
[EventDate "2019.05.12"]
[EventType "swiss"]
[EventCountry "GER"]
[SourceTitle "playchess.com"]
[Source "ChessBase"]
[SourceQuality "1"]
[TimeControl "40/5400+30:900+30"]

1. e4 {[%emt 0:00:00]} c5 {[%emt 0:08:56]} 2. Nf3 {[%emt 0:00:00]} d6 {[%emt 0:00:01]} 3. g3 {[%emt 0:00:00]} Nf6 {[%emt 0:00:42]} 4. d3 {[%emt 0:00:50]} Nc6 {[%emt 0:00:20]} 5. Bg2 {[%emt 0:00:05]} e6 {[%emt 0:03:00]} 6. O-O {[%emt 0:00:05]} Be7 {[%emt 0:00:02]} 7. Nc3 {[%emt 0:02:21]} O-O {[%emt 0:00:11]} 8. Ng5 {[%emt 0:03:20]} h6 {[%emt 0:01:51]} 9. Nh3 {[%emt 0:00:03]} Rb8 {[%emt 0:12:11]} 10. a4 {[%emt 0:00:59]} a6 {[%emt 0:02:58]} 11. f4 {[%emt 0:01:28]} Qc7 {[%emt 0:01:10]} 12. g4 {[%emt 0:11:15]} Nh7 {[%emt 0:05:56]} 13. Ne2 {[%emt 0:14:42]} f5 {[%emt 0:04:40]} 14. exf5 {[%emt 0:09:14]} exf5 {[%emt 0:02:02]} 15. g5 {[%emt 0:02:43]} Be6 {[%emt 0:02:10]} 16. Nc3 {[%emt 0:05:50]} Bf7 {[%emt 0:10:16]} 17. Bd5 {[%emt 0:07:47]} Bxd5 {[%emt 0:00:16]} 18. Nxd5 {[%emt 0:00:06]} Qd7 {[%emt 0:00:18]} 19. c3 {[%emt 0:10:13]} Qe6 {[%emt 0:01:54]} 20. Qf3 {[%emt 0:04:41]} hxg5 {[%emt 0:07:21]} 21. fxg5 {[%emt 0:00:18]} Ne5 {[%emt 0:00:13]} 22. Qg2 {[%emt 0:00:33]} Nxd3 {[%emt 0:00:24]} 23. Nxe7+ {[%emt 0:00:14]} Qxe7 {[%emt 0:00:02]} 24. Qd5+ {[%emt 0:00:09]} 1-0

[Event "Bamberg-Open 2019"]
[Site "Bamberg"]
[Date "2019.06.02"]
[Round "7.22"]
[White "Gass, Ulrich"]
[Black "Krauseneck, Peter"]
[Result "1/2-1/2"]
[ECO "B00"]
[WhiteElo "2029"]
[BlackElo "2136"]
[Annotator "ChessBase"]
[PlyCount "28"]
[EventDate "2019.05.12"]
[EventType "swiss"]
[EventCountry "GER"]
[SourceTitle "playchess.com"]
[Source "ChessBase"]
[SourceQuality "1"]
[TimeControl "40/5400+30:900+30"]

1. e4 {[%emt 0:00:00]} b6 {[%emt 0:00:00]} 2. d4 {[%emt 0:00:00]} Bb7 {[%emt 0:00:00]} 3. f3 {[%emt 0:00:39]} e6 {[%emt 0:00:00]} 4. Bd3 {[%emt 0:00:17]} d6 {[%emt 0:00:00]} 5. Ne2 {[%emt 0:00:24]} g6 {[%emt 0:00:00]} 6. Be3 {[%emt 0:00:26]} Bg7 {[%emt 0:00:00]} 7. Qd2 {[%emt 0:00:39]} h6 {[%emt 0:00:08]} 8. c4 {[%emt 0:00:19]} Nd7 {[%emt 0:00:02]} 9. Nbc3 {[%emt 0:00:14]} Ne7 {[%emt 0:00:03]} 10. O-O {[%emt 0:00:49]} a6 {[%emt 0:00:22]} 11. Rad1 {[%emt 0:00:53]} c5 {[%emt 0:00:13]} 12. Bc2 {[%emt 0:00:25]} Qc7 {[%emt 0:00:11]} 13. dxc5 {[%emt 0:00:29]} dxc5 {[%emt 0:00:06]} 14. Bf4 {[%emt 0:00:33]} Be5 {[%emt 0:00:34]} 1/2-1/2

[Event "Bamberg-Open 2019"]
[Site "Bamberg"]
[Date "2019.06.02"]
[Round "7.24"]
[White "Syed, Tareq"]
[Black "Boehme, Markus"]
[Result "1/2-1/2"]
[ECO "A00"]
[WhiteElo "2001"]
[BlackElo "2118"]
[Annotator "ChessBase"]
[PlyCount "42"]
[EventDate "2019.05.12"]
[EventType "swiss"]
[EventCountry "GER"]
[SourceTitle "playchess.com"]
[Source "ChessBase"]
[SourceQuality "1"]
[TimeControl "40/5400+30:900+30"]

1. d3 {[%emt 0:09:34]} e5 {[%emt 0:00:05]} 2. g3 {[%emt 0:00:02]} d5 {[%emt 0:00:13]} 3. Nd2 {[%emt 0:00:08]} Nf6 {[%emt 0:00:41]} 4. Bg2 {[%emt 0:00:13]} c6 {[%emt 0:00:26]} 5. e4 {[%emt 0:00:54]} Bd6 {[%emt 0:01:16]} 6. Nh3 {[%emt 0:02:48]} O-O {[%emt 0:03:06]} 7. O-O {[%emt 0:01:39]} Re8 {[%emt 0:04:30]} 8. f3 {[%emt 0:02:11]} Na6 {[%emt 0:09:11]} 9. Nf2 {[%emt 0:00:58]} Qb6 {[%emt 0:08:59]} 10. Kh1 {[%emt 0:01:15]} Be6 {[%emt 0:09:37]} 11. c3 {[%emt 0:20:56]} Rad8 {[%emt 0:02:37]} 12. Qe2 {[%emt 0:06:15]} dxe4 {[%emt 0:13:02]} 13. dxe4 {[%emt 0:03:42]} Nc5 {[%emt 0:02:43]} 14. b3 {[%emt 0:13:01]} Rd7 {[%emt 0:04:25]} 15. Bh3 {[%emt 0:07:01]} Bxh3 {[%emt 0:01:15]} 16. Nxh3 {[%emt 0:00:02]} Bb8 {[%emt 0:01:14]} 17. Nc4 {[%emt 0:03:02]} Qd8 {[%emt 0:01:58]} 18. Nf2 {[%emt 0:02:24]} Nd3 {[%emt 0:02:25]} 19. Bg5 {[%emt 0:01:23]} Nxf2+ {[%emt 0:00:38]} 20. Rxf2 {[%emt 0:00:36]} h6 {[%emt 0:00:32]} 21. Be3 {[%emt 0:01:33]} b5 {[%emt 0:04:20]} 1/2-1/2

[Event "Bamberg-Open 2019"]
[Site "Bamberg"]
[Date "2019.06.02"]
[Round "7.25"]
[White "Schreiter, Thomas"]
[Black "Kunath, Tim"]
[Result "0-1"]
[ECO "E63"]
[WhiteElo "1982"]
[BlackElo "2103"]
[Annotator "ChessBase"]
[PlyCount "72"]
[EventDate "2019.05.12"]
[EventType "swiss"]
[EventCountry "GER"]
[SourceTitle "playchess.com"]
[Source "ChessBase"]
[SourceQuality "1"]
[TimeControl "40/5400+30:900+30"]

1. d4 {[%emt 0:00:00]} Nf6 {[%emt 0:00:00]} 2. c4 {[%emt 0:00:00]} g6 {[%emt 0:00:59]} 3. g3 {[%emt 0:00:22]} Bg7 {[%emt 0:00:14]} 4. Bg2 {[%emt 0:00:07]} d6 {[%emt 0:00:12]} 5. Nf3 {[%emt 0:00:27]} O-O {[%emt 0:00:11]} 6. O-O {[%emt 0:00:16]} Nc6 {[%emt 0:00:58]} 7. Nc3 {[%emt 0:00:29]} a6 {[%emt 0:00:06]} 8. Re1 {[%emt 0:01:16]} Rb8 {[%emt 0:02:22]} 9. d5 {[%emt 0:03:50]} Na5 {[%emt 0:01:00]} 10. Qd3 {[%emt 0:03:35]} c5 {[%emt 0:04:03]} 11. e4 {[%emt 0:05:51]} Nd7 {[%emt 0:12:50]} 12. Rb1 {[%emt 0:08:01]} b5 {[%emt 0:09:44]} 13. cxb5 {[%emt 0:03:52]} axb5 {[%emt 0:00:39]} 14. Bf4 {[%emt 0:01:35]} b4 {[%emt 0:25:00]} 15. Ne2 {[%emt 0:01:52]} Qb6 {[%emt 0:04:57]} 16. Qe3 {[%emt 0:03:45]} Nc4 {[%emt 0:02:21]} 17. Qc1 {[%emt 0:00:16]} Nde5 {[%emt 0:01:11]} 18. Nxe5 {[%emt 0:02:01]} Nxe5 {[%emt 0:00:08]} 19. Qd2 {[%emt 0:01:41]} Qa6 {[%emt 0:10:17]} 20. Nc1 {[%emt 0:03:50]} Bd7 {[%emt 0:03:15]} 21. Bh6 {[%emt 0:01:10]} Nc4 {[%emt 0:01:52]} 22. Qf4 {[%emt 0:00:37]} Be5 {[%emt 0:00:45]} 23. Qf3 {[%emt 0:01:55]} Rfe8 {[%emt 0:01:25]} 24. Bf1 {[%emt 0:00:48]} Bb5 {[%emt 0:00:13]} 25. Bxc4 {[%emt 0:08:03]} Bxc4 {[%emt 0:00:27]} 26. Qd1 {[%emt 0:00:06]} Ra8 {[%emt 0:02:54]} 27. Qc2 {[%emt 0:04:15]} Bb5 {[%emt 0:01:22]} 28. a3 {[%emt 0:04:14]} bxa3 {[%emt 0:02:06]} 29. bxa3 {[%emt 0:00:40]} Ba4 {[%emt 0:01:09]} 30. Qa2 {[%emt 0:02:32]} Reb8 {[%emt 0:00:55]} 31. Be3 {[%emt 0:02:44]} Bd7 {[%emt 0:02:10]} 32. Re2 {[%emt 0:03:52]} Bg4 {[%emt 0:03:19]} 33. Rd2 {[%emt 0:00:58]} Bf3 {[%emt 0:00:19]} 34. Nd3 {[%emt 0:01:09]} Rxb1+ {[%emt 0:01:44]} 35. Qxb1 {[%emt 0:00:04]} Bxe4 {[%emt 0:00:32]} 36. Qb3 {[%emt 0:00:12]} c4 {[%emt 0:00:14]} 0-1

[Event "Bamberg-Open 2019"]
[Site "Bamberg"]
[Date "2019.06.02"]
[Round "7.26"]
[White "Bunk, Wolfgang"]
[Black "Dannhaeuser, Kevin"]
[Result "0-1"]
[ECO "B06"]
[WhiteElo "1995"]
[BlackElo "2095"]
[Annotator "NA"]
[PlyCount "134"]
[EventDate "2019.05.12"]
[EventType "swiss"]
[EventCountry "GER"]
[SourceTitle "playchess.com"]
[Source "ChessBase"]
[SourceQuality "1"]
[TimeControl "40/5400+30:900+30"]

1. d4 {[%emt 0:00:00]} g6 {[%emt 0:00:00]} 2. e4 {[%emt 0:00:00]} Bg7 {[%emt 0:00:00]} 3. c4 {[%emt 0:02:01]} c5 {[%emt 0:00:37]} 4. d5 {[%emt 0:00:32]} d6 {[%emt 0:04:27]} 5. Nc3 {[%emt 0:01:04]} a6 {[%emt 0:10:09]} 6. Bd3 {[%emt 0:15:47] A43: Schmid Benoni} (6. f4 e6 7. dxe6 fxe6 8. Nf3 Nc6 9. Be3 Nh6 10. Qd2 Nf7 11. O-O-O Qa5 12. Kb1 Bxc3 13. bxc3 Bd7 {1-0 (38) Ivanchuk,V (2726)-Malakhov,V (2686) Riadh 2017}) 6... e5 {[%emt 0:02:18]} 7. f4 {[%emt 0:05:59]} (7. h4 $16) 7... Ne7 {[%emt 0:05:37]} (7... exf4 $11 8. Bxf4 Nf6) 8. fxe5 {[%emt 0:06:28]} Bxe5 {[%emt 0:00:10]} 9. Nf3 {[%emt 0:00:41]} Bg4 $146 {[%emt 0:02:10]} ({Predecessor:} 9... Bg7 10. Bf4 Qc7 11. Qd2 h6 12. O-O Bg4 13. Bc2 Bxf3 14. Rxf3 f6 {½-½ (26) Hubel,M-Kuci,B Waldshut 2002}) 10. Qa4+ {[%emt 0:07:41]} b5 {[%emt 0:05:38]} 11. cxb5 {[%emt 0:03:05]} Bxf3 {[%emt 0:00:11]} 12. gxf3 {[%emt 0:00:13]} O-O {[%emt 0:01:55]} 13. Qc2 {[%emt 0:18:09]} ({Much worse is} 13. bxa6 $6 Nxa6 14. Bxa6 Qb6 $11) 13... axb5 {[%emt 0:01:15]} 14. Bxb5 {[%emt 0:05:04]} Na6 {[%emt 0:06:08]} 15. Bxa6 {[%emt 0:00:28]} Rxa6 {[%emt 0:00:06]} 16. O-O {[%emt 0:06:45]} Qd7 {[%emt 0:05:53]} 17. a4 {[%emt 0:09:58]} Qh3 {[%emt 0:18:25]} 18. Be3 {[%emt 0:06:35]} Rb8 {[%emt 0:05:33]} 19. Nb5 {[%emt 0:04:19]} Rxa4 {[%emt 0:03:34]} 20. Rxa4 {[%emt 0:00:34]} Rxb5 {[%emt 0:00:04]} 21. Ra2 {[%emt 0:01:25]} Rb3 {[%emt 0:00:15]} 22. Re1 {[%emt 0:02:34]} Qh4 {[%emt 0:11:20]} 23. Qxb3 {[%emt 0:01:21]} Qxe1+ {[%emt 0:00:08]} 24. Kg2 {[%emt 0:00:11]} Qe2+ {[%emt 0:01:00]} 25. Kg1 {[%emt 0:00:53]} Bxh2+ {[%emt 0:00:59]} 26. Kh1 {[%emt 0:00:01]} Bg3 {[%emt 0:01:18]} 27. Bg1 {[%emt 0:00:11]} Qf1 {[%emt 0:01:25]} 28. Qc2 {[%emt 0:00:33]} Qxf3+ {[%emt 0:04:53]} 29. Qg2 {[%emt 0:00:01]} Qh5+ {[%emt 0:00:44]} 30. Bh2 {[%emt 0:00:02]} Be5 {[%emt 0:00:42]} 31. Ra3 {[%emt 0:02:13]} Qh4 {[%emt 0:03:12]} 32. Rh3 {[%emt 0:00:37]} Qe1+ {[%emt 0:00:06]} 33. Bg1 {[%emt 0:00:07]} Bd4 {[%emt 0:00:13]} 34. Kh2 {[%emt 0:00:52]} Bxg1+ {[%emt 0:00:47]} 35. Qxg1 {[%emt 0:00:02]} Qxe4 {[%emt 0:00:11]} 36. Qe3 {[%emt 0:00:59]} Qc2+ {[%emt 0:01:32]} 37. Kg1 {[%emt 0:00:30]} Qb1+ {[%emt 0:00:11]} 38. Kg2 {[%emt 0:00:28]} Qxb2+ {[%emt 0:00:06]} 39. Kh1 {[%emt 0:00:09]} Qb1+ {[%emt 0:01:53]} 40. Kh2 {[%emt 0:00:19]} Qc2+ {[%emt 0:00:05]} 41. Kg1 {[%emt 0:01:30]} Qd1+ {[%emt 0:04:16]} 42. Kh2 {[%emt 0:00:10]} Nf5 {[%emt 0:00:31]} 43. Qe4 {[%emt 0:02:42]} Qd4 {[%emt 0:00:40]} 44. Qf3 {[%emt 0:08:30]} c4 {[%emt 0:03:35]} 45. Qa3 {[%emt 0:02:11]} Qe5+ {[%emt 0:01:13]} 46. Kg1 {[%emt 0:00:27]} Qxd5 {[%emt 0:00:35]} 47. Qc1 {[%emt 0:01:01]} Qd4+ {[%emt 0:00:31]} 48. Kh1 {[%emt 0:00:23]} d5 {[%emt 0:00:15]} 49. Ra3 {[%emt 0:00:13]} Qf2 {[%emt 0:02:02]} 50. Qg5 {[%emt 0:01:40]} Qh4+ {[%emt 0:00:34]} 51. Qxh4 {[%emt 0:00:09]} Nxh4 {[%emt 0:00:06]} 52. Ra8+ {[%emt 0:00:25]} Kg7 {[%emt 0:00:14]} 53. Rd8 {[%emt 0:00:02]} g5 {[%emt 0:01:53]} 54. Rxd5 {[%emt 0:00:02]} f5 {[%emt 0:00:15]} 55. Rd6 {[%emt 0:00:45]} c3 {[%emt 0:00:32]} 56. Rc6 {[%emt 0:00:06]} c2 {[%emt 0:00:06]} 57. Rxc2 {[%emt 0:00:16]} Kg6 {[%emt 0:00:35]} 58. Rc6+ {[%emt 0:00:46]} Kh5 {[%emt 0:00:08]} 59. Rc7 {[%emt 0:00:12]} h6 {[%emt 0:00:07]} 60. Rc6 {[%emt 0:00:13]} g4 {[%emt 0:00:29]} 61. Kh2 {[%emt 0:00:27]} Nf3+ {[%emt 0:00:50]} (61... Kg5 $142 62. Rc8 h5) 62. Kg3 {[%emt 0:00:09]} Kg5 {[%emt 0:00:09]} 63. Rc8 {[%emt 0:00:28]} f4+ {[%emt 0:00:11]} 64. Kf2 {[%emt 0:00:18]} Kh4 {[%emt 0:01:07]} 65. Rc3 {[%emt 0:02:07]} Ng5 {[%emt 0:00:41]} 66. Rc4 {[%emt 0:01:34]} g3+ {[%emt 0:00:07]} 67. Kg2 {[%emt 0:00:27]} Kg4 {[%emt 0:00:05]} 0-1